fUSD/lending_fUSD_20240301
["ID","MTS","AMOUNT","RATE_DAILY","PERIOD"]
[315960071,1709304656827,-777.65,0.00022465,2]
[315960072,1709304656837,-500.0,0.00022465,2]
[315960073,1709304656846,-500.0,0.00022465,2]
[315960074,1709304656855,-500.0,0.00022465,2]
[315960075,1709304656864,-1322.95,0.00022465,2]
[315960076,1709304656873,-817.41,0.00022465,2]
[315960077,1709304656883,-749.79,0.00022465,2]
[315960078,1709304656893,-525.58,0.00022465,2]
[315960079,1709304656902,-500.0,0.00022465,2]
[315960080,1709304656911,-500.0,0.00022465,2]
[315960081,1709304656920,-1982.58,0.00022465,2]
[315960082,1709304656929,-5965.14,0.00022465,2]
[315960083,1709304656938,-622.78,0.00022465,2]
[315960084,1709304656949,-991.51,0.00022465,2]
[315960085,1709304656958,-663.76,0.00022465,2]
[315960086,1709304656976,-519.42,0.00022465,2]
[315960087,1709304656986,-500.0,0.00022465,2]
[315960088,1709304656997,-1057.67,0.00022465,2]
[315960089,1709304657008,-550.55,0.00022465,2]
[315960090,1709304657018,-1060.03,0.00022465,2]
[315960091,1709304657027,-500.0,0.00022465,2]
[315960092,1709304657040,-4804.81,0.00022465,2]
[315960093,1709304657049,-602.26,0.00022465,2]
[315960094,1709304657059,-1370.42,0.00022465,2]
[315960095,1709304657068,-842.73,0.00022465,2]
[315960096,1709304657078,-500.0,0.00022465,2]
[315960097,1709304657087,-500.0,0.00022465,2]
[315960098,1709304657098,-946.22,0.00022465,2]
[315960099,1709304657107,-762.45,0.00022465,2]
[315960100,1709304657116,-544.92,0.00022465,2]
[315960101,1709304657126,-500.0,0.00022465,2]
[315960102,1709304657136,-832.0,0.00022465,2]
[315960103,1709304657146,-3414.28,0.00022465,2]
[315960104,1709304657155,-514.54,0.00022465,2]
[315960105,1709304657164,-500.0,0.00022465,2]
[315960106,1709304657173,-787.0,0.00022465,2]
[315960107,1709304657183,-500.0,0.00022465,2]
[315960108,1709304657193,-16058.2,0.00022465,2]
[315960109,1709304657202,-2082.61,0.00022465,2]
[315960110,1709304657213,-670.35,0.00022465,2]
[315960111,1709304657222,-500.0,0.00022465,2]
[315960112,1709304657231,-1826.96,0.00022465,2]
[315960113,1709304657241,-1165.44,0.00022465,2]
[315960114,1709304657250,-500.0,0.00022465,2]
[315960115,1709304657259,-863.61,0.00022465,2]
[315960116,1709304657269,-926.41,0.00022465,2]
[315960117,1709304657278,-500.0,0.00022465,2]
[315960118,1709304657289,-500.0,0.00022465,2]
[315960119,1709304657299,-898.02,0.00022465,2]
[315960120,1709304657308,-1476.25,0.00022465,2]
[315960121,1709304657317,-2102.69,0.00022465,2]
[315960122,1709304657327,-1961.56,0.00022465,2]
[315960123,1709304657337,-1301.49,0.00022465,2]
[315960124,1709304657346,-621.25,0.00022465,2]
[315960125,1709304657356,-500.0,0.00022465,2]
[315960126,1709304657365,-959.79,0.00022465,2]
[315960127,1709304657374,-821.88,0.00022465,2]
[315960128,1709304657383,-715.36,0.00022465,2]
[315960129,1709304657392,-977.95,0.00022465,2]
[315960130,1709304657402,-8463.14,0.00022465,2]
[315960131,1709304657411,-515.46,0.00022465,2]
[315960132,1709304657420,-500.0,0.00022465,2]
[315960133,1709304657429,-856.55,0.00022465,2]
[315960134,1709304657439,-500.0,0.00022465,2]
[315960135,1709304657450,-1080.42,0.00022465,2]
[315960136,1709304657459,-500.0,0.00022465,2]
[315960137,1709304657468,-1310.24,0.00022465,2]
[315960138,1709304657477,-767.36,0.00022465,2]
[315960139,1709304657486,-500.0,0.00022465,2]
[315960140,1709304657495,-1272.58,0.00022465,2]
[315960141,1709304657504,-500.0,0.00022465,2]
[315960142,1709304657513,-500.0,0.00022465,2]
[315960143,1709304657522,-500.0,0.00022465,2]
[315960144,1709304657531,-728.36,0.00022465,2]
[315960145,1709304657542,-500.0,0.00022465,2]
[315960146,1709304657551,-1924.48,0.00022465,2]
[315960147,1709304657561,-500.0,0.00022465,2]
[315960148,1709304657570,-500.0,0.00022465,2]
[315960149,1709304657579,-500.0,0.00022465,2]
[315960150,1709304657589,-976.69,0.00022465,2]
[315960151,1709304657597,-1618.54,0.00022465,2]
[315960152,1709304657606,-500.0,0.00022465,2]
[315960153,1709304657615,-500.0,0.00022465,2]
[315960154,1709304657624,-1114.42,0.00022465,2]
[315960155,1709304657633,-1259.88,0.00022465,2]
[315960156,1709304657643,-914.02,0.00022465,2]
[315960157,1709304657651,-1013.83,0.00022465,2]
[315960158,1709304657661,-500.0,0.00022465,2]
[315960159,1709304657670,-648.62,0.00022465,2]
[315960160,1709304657679,-500.0,0.00022465,2]
[315960161,1709304657688,-500.0,0.00022465,2]
[315960162,1709304657697,-500.0,0.00022465,2]
[315960163,1709304657706,-545.67,0.00022465,2]
[315960164,1709304657716,-1238.96,0.00022465,2]
[315960165,1709304657725,-500.0,0.00022465,2]
[315960166,1709304657734,-616.56,0.00022465,2]
[315960167,1709304657743,-500.0,0.00022465,2]
[315960168,1709304657752,-500.0,0.00022465,2]
[315960169,1709304657761,-500.0,0.00022465,2]
[315960170,1709304657770,-1677.5,0.00022465,2]
[315960171,1709304657779,-500.0,0.00022465,2]
[315960172,1709304657790,-506.26,0.00022465,2]
[315960173,1709304657799,-500.0,0.00022465,2]
[315960174,1709304657808,-544.23,0.00022465,2]
[315960175,1709304657817,-500.0,0.00022465,2]
[315960176,1709304657826,-500.0,0.00022465,2]
[315960177,1709304657835,-1410.89,0.00022465,2]
[315960178,1709304657844,-6930.47,0.00022465,2]
[315960179,1709304657853,-500.0,0.00022465,2]
[315960180,1709304657862,-500.0,0.00022465,2]
[315960181,1709304657872,-916.57,0.00022465,2]
[315960182,1709304657881,-1063.22,0.00022465,2]
[315960183,1709304657890,-1199.75,0.00022465,2]
[315960184,1709304657898,-500.0,0.00022465,2]
[315960185,1709304657907,-1445.42,0.00022465,2]
[315960186,1709304657917,-615.26,0.00022465,2]
[315960187,1709304657926,-649.09,0.00022465,2]
[315960188,1709304657935,-1054.33,0.00022465,2]
[315960189,1709304657944,-500.0,0.00022465,2]
[315960190,1709304657954,-852.94,0.00022465,2]
[315960191,1709304657963,-720.15,0.00022465,2]
[315960192,1709304657975,-500.0,0.00022465,2]
[315960193,1709304657985,-3604.85,0.00022465,2]
[315960194,1709304657996,-266.88140191,0.00022465,2]
[315960195,1709304658006,-842.93,0.00022465,2]
[315960196,1709304658016,-1437.58,0.00022465,2]
[315960197,1709304658026,-500.0,0.00022465,2]
[315960198,1709304658035,-724.71,0.00022465,2]
[315960199,1709304658045,-884.08,0.00022465,2]
[315960200,1709304658057,-500.0,0.00022465,2]
[315960201,1709304658068,-500.0,0.00022465,2]
[315960202,1709304658077,-796.47,0.00022465,2]
[315960203,1709304658087,-1109.48,0.00022465,2]
[315960204,1709304658096,-500.0,0.00022465,2]
[315960205,1709304658106,-502.44,0.00022465,2]
[315960206,1709304658116,-610.55,0.00022465,2]
[315960207,1709304658125,-500.0,0.00022465,2]
[315960208,1709304658134,-589.85,0.00022465,2]
[315960209,1709304658144,-500.0,0.00022465,2]
[315960210,1709304658153,-2876.65,0.00022465,2]
[315960211,1709304658162,-500.0,0.00022465,2]
[315960212,1709304658172,-1378.41,0.00022465,2]
[315960213,1709304658181,-607.96,0.00022465,2]
[315960214,1709304658191,-1411.09,0.00022465,2]
[315960215,1709304658200,-571.16,0.00022465,2]
[315960216,1709304658210,-500.0,0.00022465,2]
[315960217,1709304658220,-500.0,0.00022465,2]
[315960218,1709304658229,-500.0,0.00022465,2]
[315960219,1709304658238,-3631.72,0.00022465,2]
[315960220,1709304658248,-604.11,0.00022465,2]
[315960221,1709304658257,-1497.25,0.00022465,2]
[315960222,1709304658268,-762.75,0.00022465,2]
[315960223,1709304658279,-1083.04,0.00022465,2]
[315960224,1709304658291,-500.0,0.00022465,2]
[315960225,1709304658301,-500.0,0.00022465,2]
[315960226,1709304658311,-500.0,0.00022465,2]
[315960227,1709304658321,-500.0,0.00022465,2]
[315960228,1709304658331,-500.0,0.00022465,2]
[315960229,1709304658342,-500.0,0.00022465,2]
[315960230,1709304658351,-2102.53,0.00022465,2]
[315960231,1709304658361,-715.33,0.00022465,2]
[315960232,1709304658371,-500.0,0.00022465,2]
[315960233,1709304658381,-661.72,0.00022465,2]
[315960234,1709304658390,-739.85,0.00022465,2]
[315960235,1709304658400,-1959.93,0.00022465,2]
[315960236,1709304658409,-640.32,0.00022465,2]
[315960237,1709304658419,-659.56,0.00022465,2]
[315960238,1709304658428,-1577.2,0.00022465,2]
[315960239,1709304658437,-500.0,0.00022465,2]
[315960240,1709304658447,-500.0,0.00022465,2]
[315960241,1709304658457,-1422.57,0.00022465,2]
[315960242,1709304658467,-391.26403741,0.00022465,2]
[315960243,1709304658476,-2134.63,0.00022465,2]
[315960244,1709304658485,-736.33,0.00022465,2]
[315960245,1709304658496,-500.0,0.00022465,2]
[315960246,1709304658505,-562.5,0.00022465,2]
[315960247,1709304658514,-1355.32,0.00022465,2]
[315960248,1709304658523,-500.0,0.00022465,2]
[315960249,1709304658532,-574.06,0.00022465,2]
[315960250,1709304658543,-517.62,0.00022465,2]
[315960251,1709304658553,-538.98,0.00022465,2]
[315960252,1709304658562,-500.0,0.00022465,2]
[315960253,1709304658571,-2759.21,0.00022465,2]
[315960254,1709304658581,-500.0,0.00022465,2]
[315960255,1709304658590,-488.21874968,0.00022465,2]
[315960256,1709304658599,-500.0,0.00022465,2]
[315960257,1709304658608,-676.01,0.00022465,2]
[315960258,1709304658617,-575.56,0.00022465,2]
[315960259,1709304658626,-1394.07,0.00022465,2]
[315960260,1709304658636,-500.0,0.00022465,2]
[315960261,1709304658645,-151.0,0.00022465,7]
[315960262,1709304658654,-500.0,0.00022465,2]
[315960263,1709304658664,-782.53,0.00022465,2]
[315960264,1709304658673,-500.0,0.00022465,2]
[315960265,1709304658682,-500.0,0.00022465,2]
[315960266,1709304658691,-358.08631084,0.00022465,2]
[315960267,1709304658700,-840.02,0.00022465,2]
[315960268,1709304658709,-1904.18,0.00022465,2]
[315960269,1709304658718,-4442.37,0.00022465,2]
[315960270,1709304658727,-500.0,0.00022465,2]
[315960271,1709304658737,-151.35,0.00022466,2]
[315960272,1709304658747,-150.0,0.00022473,2]
[315960273,1709304658756,-150.0,0.00022474,2]
[315960274,1709304658765,-150.0,0.00022474,2]
[315960275,1709304658775,-1500.0,0.00022474,2]
[315960276,1709304658784,-576.223808,0.00022475,2]
[315960277,1709304658793,-150.0,0.00022476,2]
[315960278,1709304658802,-150.0,0.00022479,2]
[315960279,1709304658811,-300.0,0.0002248,2]
[315960280,1709304658820,-1069.98240996,0.00022481,2]
[315960281,1709304658830,-2463.44237844,0.00022481,2]
[315960282,1709304658839,-150.0,0.00022482,2]
[315960283,1709304658848,-150.0,0.00022483,2]
[315960284,1709304658857,-2698.0,0.00022485,2]
[315960285,1709304658867,-956.0,0.00022485,2]
[315960286,1709304658876,-1374.0,0.00022485,2]
[315960287,1709304658886,-302.0,0.00022485,2]
[315960288,1709304658895,-390.0,0.00022485,2]
[315960289,1709304658904,-1041.0,0.00022485,2]
[315960290,1709304658913,-5650.0,0.00022485,2]
[315960291,1709304658922,-2298.0,0.00022485,2]
[315960292,1709304658930,-150.0,0.00022485,2]
[315960293,1709304658940,-150.0,0.00022485,2]
[315960294,1709304658950,-11594.0,0.00022485,2]
[315960295,1709304658961,-3030.971,0.00022485,2]
[315960296,1709304658970,-150.0,0.00022485,2]
[315960297,1709304658979,-150.9733473,0.00022486,2]
[315960298,1709304658990,-2393.08183575,0.00022487,2]
[315960299,1709304658999,-150.0,0.0002249,2]
[315960300,1709304659009,-734.08912336,0.0002249,2]
[315960301,1709304659018,-1500.0,0.00022491,2]
[315960302,1709304659028,-1500.0,0.00022491,2]
[315960303,1709304659040,-12739.62696659,0.00022491,2]
[315960304,1709304659049,-233.214486,0.00022491,7]
[315960305,1709304659058,-150.0,0.00022492,2]
[315960306,1709304659068,-150.0,0.00022492,2]
[315960307,1709304659077,-1500.0,0.00022493,2]
[315960308,1709304659087,-204.36,0.00022495,2]
[315960309,1709304659096,-1500.0,0.00022497,2]
[315960310,1709304659106,-150.0,0.00022498,2]
[315960311,1709304659116,-150.0,0.00022498,2]
[315960312,1709304659125,-1500.0,0.00022501,2]
[315960313,1709304659135,-150.0,0.00022501,2]
[315960314,1709304659145,-150.0,0.00022504,2]
[315960315,1709304659154,-150.0,0.00022504,2]
[315960316,1709304659164,-500.0,0.00022504,2]
[315960317,1709304659173,-117164.2211,0.00022505,2]
[315960318,1709304659183,-1500.0,0.00022505,2]
[315960319,1709304659192,-150.0,0.00022505,2]
[315960320,1709304659202,-150.0,0.00022505,2]
[315960321,1709304659212,-151.0,0.00022506,2]
[315960322,1709304659222,-150.0,0.00022511,2]
[315960323,1709304659233,-150.0,0.00022511,2]
[315960324,1709304659242,-150.0,0.00022513,2]
[315960325,1709304659252,-150.0,0.00022515,2]
[315960326,1709304659262,-800.0,0.00022521,2]
[315960327,1709304659272,-150.0,0.00022521,2]
[315960328,1709304659282,-150.0,0.00022521,2]
[315960329,1709304659294,-1840.20780786,0.00022521,2]
[315960330,1709304659303,-150.0,0.00022523,2]
[315960331,1709304659313,-1500.0,0.00022525,2]
[315960332,1709304659323,-150.0,0.00022525,2]
[315960333,1709304659334,-150.0,0.00022529,2]
[315960334,1709304659344,-150.0,0.00022529,2]
[315960335,1709304659353,-150.0,0.00022531,2]
[315960336,1709304659363,-150.0,0.00022532,2]
[315960337,1709304659372,-151.0,0.00022534,7]
[315960338,1709304659381,-150.0,0.00022535,2]
[315960339,1709304659392,-865.41,0.00022537,2]
[315960340,1709304659402,-477.48573531,0.00022539,2]
[315960341,1709304659411,-204.63674371,0.00022539,2]
[315960342,1709304659421,-150.0,0.00022541,2]
[315960343,1709304659430,-150.0,0.00022542,2]
[315960344,1709304659439,-150.0,0.00022542,2]
[315960345,1709304659448,-150.0,0.00022542,2]
[315960346,1709304659457,-150.0,0.00022543,2]
[315960347,1709304659466,-150.0,0.00022544,2]
[315960348,1709304659475,-150.0,0.00022545,2]
[315960349,1709304659485,-150.0,0.00022546,2]
[315960350,1709304659494,-500.0,0.00022548,2]
[315960351,1709304659503,-302.27764359,0.00022551,2]
[315960352,1709304659513,-1500.0,0.00022552,2]
[315960353,1709304659522,-150.0,0.00022554,2]
[315960354,1709304659531,-150.0,0.00022556,2]
[315960355,1709304659542,-150.0,0.0002256,2]
[315960356,1709304659551,-150.0,0.00022562,2]
[315960357,1709304659561,-150.0,0.00022564,2]
[315960358,1709304659571,-1500.0,0.00022565,2]
[315960359,1709304659580,-1500.0,0.00022567,2]
[315960360,1709304659591,-1500.0,0.00022567,2]
[315960361,1709304659601,-150.0,0.00022568,2]
[315960362,1709304659611,-1604.91220916,0.00022568,2]
[315960363,1709304659620,-1003.34636129,0.0002257,2]
[315960364,1709304659630,-150.0,0.00022572,2]
[315960365,1709304659640,-150.0,0.00022573,2]
[315960366,1709304659649,-1497.25,0.00022575,2]
[315960367,1709304659659,-762.75,0.00022575,2]
[315960368,1709304659669,-1083.04,0.00022575,2]
[315960369,1709304659678,-500.0,0.00022575,2]
[315960370,1709304659688,-500.0,0.00022575,2]
[315960371,1709304659697,-500.0,0.00022575,2]
[315960372,1709304659707,-500.0,0.00022575,2]
[315960373,1709304659716,-500.0,0.00022575,2]
[315960374,1709304659726,-500.0,0.00022575,2]
[315960375,1709304659737,-2102.53,0.00022575,2]
[315960376,1709304659747,-715.33,0.00022575,2]
[315960377,1709304659756,-500.0,0.00022575,2]
[315960378,1709304659766,-661.72,0.00022575,2]
[315960379,1709304659776,-739.85,0.00022575,2]
[315960380,1709304659788,-1959.93,0.00022575,2]
[315960381,1709304659798,-640.32,0.00022575,2]
[315960382,1709304659809,-659.56,0.00022575,2]
[315960383,1709304659819,-1577.2,0.00022575,2]
[315960384,1709304659829,-500.0,0.00022575,2]
[315960385,1709304659838,-500.0,0.00022575,2]
[315960386,1709304659847,-1422.57,0.00022575,2]
[315960387,1709304659857,-2134.63,0.00022575,2]
[315960388,1709304659866,-736.33,0.00022575,2]
[315960389,1709304659876,-500.0,0.00022575,2]
[315960390,1709304659886,-562.5,0.00022575,2]
[315960391,1709304659895,-1355.32,0.00022575,2]
[315960392,1709304659904,-500.0,0.00022575,2]
[315960393,1709304659914,-574.06,0.00022575,2]
[315960394,1709304659923,-517.62,0.00022575,2]
[315960395,1709304659933,-538.98,0.00022575,2]
[315960396,1709304659942,-500.0,0.00022575,2]
[315960397,1709304659953,-2759.21,0.00022575,2]
[315960398,1709304659965,-500.0,0.00022575,2]
[315960399,1709304659976,-500.0,0.00022575,2]
[315960400,1709304659988,-676.01,0.00022575,2]
[315960401,1709304659998,-575.56,0.00022575,2]
[315960402,1709304660010,-1394.07,0.00022575,2]
[315960403,1709304660022,-500.0,0.00022575,2]
[315960404,1709304660033,-500.0,0.00022575,2]
[315960405,1709304660050,-782.53,0.00022575,2]
[315960406,1709304660062,-500.0,0.00022575,2]
[315960407,1709304660073,-500.0,0.00022575,2]
[315960408,1709304660083,-840.02,0.00022575,2]
[315960409,1709304660094,-1904.18,0.00022575,2]
[315960410,1709304660104,-4442.37,0.00022575,2]
[315960411,1709304660114,-500.0,0.00022579,2]
[315960412,1709304660124,-242160.2935921,0.0002258,2]
[315960413,1709304660134,-150.0,0.00022581,2]
[315960414,1709304660144,-150.0,0.00022582,2]
[315960415,1709304660154,-150.0,0.00022583,2]
[315960416,1709304660163,-150.0,0.00022583,2]
[315960417,1709304660173,-150.0,0.00022585,2]
[315960418,1709304660183,-204.73380643,0.00022587,2]
[315960419,1709304660192,-4990.18398372,0.00022587,2]
[315960420,1709304660201,-150.0,0.00022587,2]
[315960421,1709304660211,-11637.61119413,0.0002259,3]
[315960422,1709304660221,-1466.17350424,0.0002259,2]
[315960423,1709304660231,-2000.0,0.0002259,2]
[315960424,1709304660241,-200.0,0.0002259,2]
[315960425,1709304660251,-151.0,0.0002259,2]
[315960426,1709304660261,-895.17960564,0.00022591,2]
[315960427,1709304660271,-150.0,0.00022591,2]
[315960428,1709304660281,-150.0,0.00022591,2]
[315960429,1709304660295,-300.0,0.00022592,2]
[315960430,1709304660305,-150.0,0.00022593,2]
[315960431,1709304660316,-150.0,0.00022593,2]
[315960432,1709304660326,-880.0,0.00022594,2]
[315960433,1709304660336,-1840.20780786,0.00022597,2]
[315960434,1709304660346,-2000.0,0.000226,2]
[315960435,1709304660355,-390.35,0.000226,2]
[315960436,1709304660365,-11532.9572003,0.00022602,2]
[315960437,1709304660374,-4489.9663241,0.00022602,2]
[315960438,1709304660384,-300.0,0.00022602,2]
[315960439,1709304660393,-151.0,0.00022602,7]
[315960440,1709304660403,-150.0,0.00022602,2]
[315960441,1709304660414,-150.0,0.00022602,2]
[315960442,1709304660423,-155.51,0.00022603,2]
[315960443,1709304660432,-180.0,0.00022603,2]
[315960444,1709304660442,-1500.0,0.00022608,2]
[315960445,1709304660454,-150.0,0.0002261,2]
[315960446,1709304660464,-150.0,0.0002261,2]
[315960447,1709304660473,-409.83,0.0002261,2]
[315960448,1709304660483,-400.78,0.0002261,2]
[315960449,1709304660492,-204.36,0.0002261,2]
[315960450,1709304660502,-150.0,0.00022612,2]
[315960451,1709304660513,-1500.0,0.00022616,2]
[315960452,1709304660524,-184.65105632,0.00022619,2]
[315960453,1709304660534,-150.0,0.0002262,2]
[315960454,1709304660547,-150.0,0.0002262,2]
[315960455,1709304660557,-150.0,0.00022621,2]
[315960456,1709304660568,-150.0,0.00022625,2]
[315960457,1709304660577,-1500.0,0.00022626,2]
[315960458,1709304660587,-1500.0,0.00022627,2]
[315960459,1709304660597,-1423.29,0.00022628,2]
[315960460,1709304660606,-150.0,0.00022633,2]
[315960461,1709304660616,-1500.0,0.00022634,2]
[315960462,1709304660625,-150.0,0.00022638,2]
[315960463,1709304660635,-1500.0,0.0002264,2]
[315960464,1709304660645,-1500.0,0.00022641,2]
[315960465,1709304660654,-150.0,0.00022641,2]
[315960466,1709304660663,-150.0,0.00022646,2]
[315960467,1709304660673,-158.55,0.00022648,2]
[315960468,1709304660684,-150.0,0.00022653,2]
[315960469,1709304660693,-1500.0,0.0002266,2]
[315960470,1709304660703,-150.0,0.00022664,2]
[315960471,1709304660712,-1500.0,0.00022666,2]
[315960472,1709304660722,-1000.0,0.0002267,2]
[315960473,1709304660732,-574.08792291,0.0002267,2]
[315960474,1709304660741,-1840.20780786,0.00022673,2]
[315960475,1709304660752,-300.0,0.00022677,2]
[315960476,1709304660764,-150.0,0.00022677,2]
[315960477,1709304660774,-1500.0,0.00022678,2]
[315960478,1709304660785,-150.0,0.0002268,2]
[315960479,1709304660796,-150.0,0.00022682,2]
[315960480,1709304660806,-150.0,0.00022684,2]
[315960481,1709304660815,-1497.25,0.00022684,2]
[315960482,1709304660825,-762.75,0.00022684,2]
[315960483,1709304660834,-1083.04,0.00022684,2]
[315960484,1709304660844,-500.0,0.00022684,2]
[315960485,1709304660853,-500.0,0.00022684,2]
[315960486,1709304660863,-500.0,0.00022684,2]
[315960487,1709304660872,-500.0,0.00022684,2]
[315960488,1709304660882,-500.0,0.00022684,2]
[315960489,1709304660891,-500.0,0.00022684,2]
[315960490,1709304660901,-2102.53,0.00022684,2]
[315960491,1709304660911,-715.33,0.00022684,2]
[315960492,1709304660921,-500.0,0.00022684,2]
[315960493,1709304660930,-661.72,0.00022684,2]
[315960494,1709304660940,-739.85,0.00022684,2]
[315960495,1709304660953,-1959.93,0.00022684,2]
[315960496,1709304660963,-640.32,0.00022684,2]
[315960497,1709304660973,-659.56,0.00022684,2]
[315960498,1709304660983,-1577.2,0.00022684,2]
[315960499,1709304660993,-500.0,0.00022684,2]
[315960500,1709304661003,-500.0,0.00022684,2]
[315960501,1709304661013,-1422.57,0.00022684,2]
[315960502,1709304661022,-2134.63,0.00022684,2]
[315960503,1709304661033,-736.33,0.00022684,2]
[315960504,1709304661048,-500.0,0.00022684,2]
[315960505,1709304661058,-562.5,0.00022684,2]
[315960506,1709304661068,-1355.32,0.00022684,2]
[315960507,1709304661077,-500.0,0.00022684,2]
[315960508,1709304661087,-574.06,0.00022684,2]
[315960509,1709304661097,-517.62,0.00022684,2]
[315960510,1709304661107,-538.98,0.00022684,2]
[315960511,1709304661117,-500.0,0.00022684,2]
[315960512,1709304661127,-2759.21,0.00022684,2]
[315960513,1709304661137,-500.0,0.00022684,2]
[315960514,1709304661147,-500.0,0.00022684,2]
[315960515,1709304661157,-676.01,0.00022684,2]
[315960516,1709304661166,-575.56,0.00022684,2]
[315960517,1709304661176,-1394.07,0.00022684,2]
[315960518,1709304661187,-500.0,0.00022684,2]
[315960519,1709304661198,-500.0,0.00022684,2]
[315960520,1709304661208,-782.53,0.00022684,2]
[315960521,1709304661219,-500.0,0.00022684,2]
[315960522,1709304661229,-500.0,0.00022684,2]
[315960523,1709304661239,-840.02,0.00022684,2]
[315960524,1709304661249,-1904.18,0.00022684,2]
[315960525,1709304661258,-4442.37,0.00022684,2]
[315960526,1709304661268,-150.0,0.00022686,2]
[315960527,1709304661278,-200.0,0.00022687,2]
[315960528,1709304661291,-1069.98240995,0.00022691,2]
[315960529,1709304661302,-2463.44237842,0.00022691,2]
[315960530,1709304661312,-150.0,0.00022691,2]
[315960531,1709304661322,-150.0,0.00022691,2]
[315960532,1709304661333,-150.0,0.00022692,2]
[315960533,1709304661343,-2393.08183575,0.00022694,2]
[315960534,1709304661353,-1500.0,0.00022694,2]
[315960535,1709304661363,-266.6291541,0.00022694,2]
[315960536,1709304661374,-734.08912334,0.00022695,2]
[315960537,1709304661384,-12739.62696659,0.00022696,2]
[315960538,1709304661394,-150.0,0.00022697,2]
[315960539,1709304661404,-1000.0,0.000227,2]
[315960540,1709304661635,-171.278435,0.000227,2]
[315960541,1709304661650,-150.0,0.00022706,2]
[315960542,1709304661659,-150.0,0.0002271,2]
[315960543,1709304661669,-150.0,0.00022712,2]
[315960544,1709304661678,-1500.0,0.00022713,2]
[315960545,1709304661687,-1500.0,0.00022725,2]
[315960546,1709304661697,-409.83,0.00022725,2]
[315960547,1709304661707,-400.78,0.00022725,2]
[315960548,1709304661716,-204.36,0.00022725,2]
[315960549,1709304661726,-228.20170254,0.00022728,2]
[315960550,1709304661736,-1604.91220914,0.00022734,2]
[315960551,1709304661745,-155.0,0.00022737,2]
[315960552,1709304661754,-155.0,0.00022737,2]
[315960553,1709304661764,-500.0,0.00022738,2]
[315960554,1709304661773,-500.0,0.00022738,2]
[315960555,1709304661782,-500.0,0.00022739,2]
[315960556,1709304661794,-500.0,0.00022739,2]
[315960557,1709304661803,-258.43,0.00022739,2]
[315960558,1709304661813,-500.0,0.00022739,2]
[315960559,1709304661822,-500.0,0.00022739,2]
[315960560,1709304661831,-500.0,0.00022739,2]
[315960561,1709304661841,-209.44578281,0.00022739,2]
[315960562,1709304661850,-500.0,0.00022739,2]
[315960563,1709304661860,-500.0,0.00022739,2]
[315960564,1709304661870,-500.0,0.00022739,2]
[315960565,1709304661880,-500.0,0.00022739,2]
[315960566,1709304661889,-500.0,0.00022739,2]
[315960567,1709304661900,-500.0,0.00022739,2]
[315960568,1709304661910,-500.0,0.00022739,2]
[315960569,1709304661919,-500.0,0.00022739,2]
[315960570,1709304661928,-500.0,0.00022739,2]